fUSD/lending_fUSD_20260121
["ID","MTS","AMOUNT","RATE_DAILY","PERIOD"]
[402991627,1769026244119,-500.0,0.00017999,2]
[402991628,1769026244128,-500.0,0.00017999,2]
[402991629,1769026244137,-500.0,0.00017999,2]
[402991630,1769026244146,-500.0,0.00017999,2]
[402991631,1769026244157,-500.0,0.00017999,2]
[402991632,1769026244166,-500.0,0.00017999,2]
[402991633,1769026244176,-500.0,0.00017999,2]
[402991634,1769026244185,-500.0,0.00017999,2]
[402991635,1769026244194,-500.0,0.00017999,2]
[402991636,1769026244203,-500.0,0.00017999,2]
[402991637,1769026244213,-500.0,0.00017999,2]
[402991638,1769026244223,-227.07785122,0.00017999,2]
[402991639,1769026244232,-500.0,0.00017999,2]
[402991640,1769026244241,-297.47648537,0.00017999,2]
[402991641,1769026244252,-500.0,0.00017999,2]
[402991642,1769026244262,-193.31605597,0.00017999,2]
[402991643,1769026244271,-4482579.69981683,0.00018,2]
[402991644,1769026244280,-854.7925858,0.00018,2]
[402991645,1769026244290,-11720.537548,0.00018,2]
[402991646,1769026244299,-200.0,0.00018,2]
[402991647,1769026244308,-439.6819,0.00018,2]
[402991648,1769026244317,-439.68191,0.00018,2]
[402991649,1769026244327,-439.6819,0.00018,2]
[402991650,1769026244336,-439.68191,0.00018,2]
[402991651,1769026244347,-439.6819,0.00018,2]
[402991652,1769026244356,-439.6819,0.00018,2]
[402991653,1769026244365,-151.0,0.00018,2]
[402991654,1769026244375,-151.0,0.00018,2]
[402991655,1769026244385,-1264.0,0.00018,2]
[402991656,1769026244394,-1264.0,0.00018,2]
[402991657,1769026244403,-200.0,0.00018028,2]
[402991658,1769026244413,-1000.0,0.00018042,2]
[402991659,1769026244422,-851.75,0.00018105,2]
[402991660,1769026244433,-1645.87,0.0001814,2]
[402991661,1769026244443,-253.97,0.00018186,2]
[402991662,1769026244452,-168.0,0.00018214,2]
[402991663,1769026244464,-168.0,0.0001826,2]
[402991664,1769026244473,-500.0,0.00018268,2]
[402991665,1769026244483,-871.00530969,0.00018268,2]
[402991666,1769026244492,-1500.0,0.00018268,2]
[402991667,1769026244502,-1500.0,0.00018268,2]
[402991668,1769026244511,-1522.19934243,0.00018268,2]
[402991669,1769026244521,-1500.0,0.00018268,2]
[402991670,1769026244530,-1500.0,0.00018268,2]
[402991671,1769026244540,-1500.0,0.00018268,2]
[402991672,1769026244549,-1500.0,0.00018268,2]
[402991673,1769026244559,-1500.0,0.00018268,2]
[402991674,1769026244568,-2918.0,0.00018295,2]
[402991675,1769026244578,-168.0,0.00018313,2]
[402991676,1769026244587,-168.0,0.0001833,2]
[402991677,1769026244596,-168.0,0.00018364,2]
[402991678,1769026244606,-586.66357325,0.00018368,2]
[402991679,1769026244615,-168.0,0.00018373,2]
[402991680,1769026244625,-168.0,0.00018434,2]
[402991681,1769026244635,-168.0,0.00018466,2]
[402991682,1769026244645,-166.66,0.00018493,2]
[402991683,1769026244655,-168.0,0.00018494,2]
[402991684,1769026244664,-168.0,0.00018562,2]
[402991685,1769026244673,-231.31,0.000186,2]
[402991686,1769026244682,-1000.0,0.00018627,2]
[402991687,1769026244691,-151.28,0.000188,2]
[402991688,1769026244701,-2000.0,0.00018816,2]
[402991689,1769026244711,-501.3483833,0.00018816,2]
[402991690,1769026244720,-2000.0,0.00018816,2]
[402991691,1769026244730,-1500.0,0.00018816,2]
[402991692,1769026244740,-760.76886052,0.00018816,2]
[402991693,1769026244749,-2000.0,0.00018816,2]
[402991694,1769026244758,-1610.38834737,0.00018816,2]
[402991695,1769026244767,-500.0,0.00018822,2]
[402991696,1769026244777,-168.0,0.00018826,2]
[402991697,1769026244787,-187.82,0.00018899,2]
[402991698,1769026244796,-250.0,0.00018972,2]
[402991699,1769026244806,-168.0,0.00018976,2]
[402991700,1769026244815,-300.0,0.00019,2]
[402991701,1769026244824,-184.09742413,0.00019,2]
[402991702,1769026244834,-1645.87,0.00019004,2]
[402991703,1769026244843,-678.43,0.00019094,2]
[402991704,1769026244852,-191.8838658,0.00019095,2]
[402991705,1769026244862,-168.0,0.00019133,2]
[402991706,1769026244881,-151.0,0.00019177,2]
[402991707,1769026244892,-3000.0,0.00019178,2]
[402991708,1769026244901,-500.0,0.00019178,2]
[402991709,1769026244912,-500.0,0.00019178,2]
[402991710,1769026244922,-500.0,0.00019178,2]
[402991711,1769026244931,-500.0,0.00019178,2]
[402991712,1769026244942,-500.0,0.00019178,2]
[402991713,1769026244951,-170.91560616,0.00019178,2]
[402991714,1769026244963,-500.0,0.00019178,2]
[402991715,1769026244972,-254.07,0.00019178,30]
[402991716,1769026244985,-2918.0,0.00019198,2]
[402991717,1769026244994,-199.97,0.00019244,2]
[402991718,1769026245004,-1000.0,0.00019254,2]
[402991719,1769026245015,-39024.98285631,0.00019321,2]
[402991720,1769026245754,-3568.14221213,0.00019321,2]
[402991722,1769026245766,-6700.02033961,0.00019321,2]
[402991724,1769026245777,-3165.5019573,0.00019321,2]
[402991726,1769026245789,-3575.63057752,0.00019321,2]
[402991729,1769026245954,-1120.43290127,0.00016659,2]
[402991730,1769026245968,-3748.12283281,0.00016659,2]
[402991731,1769026245977,-10140.4900989,0.00019321,2]
[402991742,1769026247132,-180.81,0.00017792,2]
[402991743,1769026247142,-180.81,0.00018485,2]
[402991744,1769026247154,-413.1912373,0.00019321,2]
[402991745,1769026247166,-94980.34834293,0.00019321,2]
[402991746,1769026247176,-2500.0,0.00019364,2]
[402991747,1769026247186,-2500.0,0.00019364,2]
[402991748,1769026247195,-506.18405255,0.00019364,2]
[402991749,1769026247205,-168.0,0.00019384,2]
[402991750,1769026247219,-2351.0,0.00019456,2]
[402991751,1769026247228,-154.21,0.00019469,2]
[402991752,1769026247238,-151.0,0.00019502,2]
[402991753,1769026247249,-168.0,0.00019525,2]
[402991754,1769026247259,-168.0,0.00019588,2]
[402991755,1769026247269,-531.0,0.000196,2]
[402991756,1769026247280,-154.21,0.00019616,2]
[402991757,1769026247290,-36050.7623546,0.00019617,2]
[402991758,1769026247300,-1000.0,0.0001967,2]
[402991759,1769026247310,-500.0,0.0001967,2]
[402991760,1769026247320,-168.0,0.00019689,2]
[402991761,1769026247330,-2918.0,0.00019726,2]
[402991762,1769026247340,-2918.0,0.00019746,2]
[402991763,1769026247350,-168.0,0.00019747,2]
[402991764,1769026247360,-2918.0,0.00019754,2]
[402991765,1769026247369,-154.2,0.00019764,2]
[402991766,1769026247379,-168.0,0.0001978,2]
[402991767,1769026247389,-187.82,0.00019799,2]
[402991768,1769026247398,-11720.537548,0.00019814,2]
[402991769,1769026247407,-1645.87,0.00019868,2]
[402991770,1769026247416,-1000.0,0.0001987,2]
[402991771,1769026247427,-500.0,0.0001987,2]
[402991772,1769026247437,-463.10612482,0.00019897,2]
[402991773,1769026247446,-3587.73445889,0.000199,2]
[402991774,1769026247457,-120061.71999357,0.000199,2]
[402991775,1769026247468,-2070.67630539,0.00019912,2]
[402991776,1769026247478,-900.02139476,0.00019912,2]
[402991777,1769026247488,-1067.73274922,0.0002,30]
[402991778,1769026247497,-161.04,0.0002,7]
[402991779,1769026247507,-168.0,0.00020044,2]
[402991780,1769026247517,-1000.0,0.00020046,2]
[402991781,1769026247527,-282.38,0.00020137,14]
[402991782,1769026247538,-158.37327714,0.0002036,2]
[402991783,1769026247548,-308.00924308,0.00020695,2]
[402991784,1769026247558,-187.82,0.00020699,2]
[402991785,1769026247567,-1645.87,0.00020731,2]
[402991786,1769026247577,-350.0,0.00021,2]
[402991787,1769026247586,-678.43,0.00021216,2]
[402991788,1769026247596,-10460.8216804,0.00021222,2]
[402991789,1769026247606,-3292.0,0.00021376,2]
[402991790,1769026247616,-409.52,0.00021451,2]
[402991791,1769026247626,-187.82,0.00021599,2]
[402991792,1769026247636,-197382.5172008,0.00021607,2]
[402991793,1769026247645,-11720.537548,0.00021627,2]
[402991794,1769026247655,-158.37327714,0.00021815,2]
[402991795,1769026247664,-191.8838658,0.00021853,2]
[402991796,1769026247674,-151.0,0.00021916,2]
[402991797,1769026247683,-4509.02210366,0.00021918,2]
[402991798,1769026247695,-323.311332,0.00021918,2]
[402991799,1769026247713,-167.66656434,0.00021918,2]
[402991800,1769026247722,-300.0,0.00021918,2]
[402991801,1769026247733,-1165.29728096,0.0002196,2]
[402991802,1769026247744,-1168.82753584,0.0002196,2]
[402991803,1769026247753,-1191.98,0.00022,7]
[402991804,1769026247763,-329.74,0.00022,2]
[402991805,1769026247772,-8702.45935059,0.00022,2]
[402991806,1769026247783,-1860.73995632,0.00022,2]
[402991807,1769026247794,-23047.55816334,0.00022,2]
[402991808,1769026247804,-1000.0,0.00022051,2]
[402991809,1769026247813,-20504.7290094,0.00022432,2]
[402991810,1769026250504,-1.7e-07,0.00022432,2]
[402991811,1769026250552,-562.10624528,0.00016338,2]
[402991812,1769026250561,-234.42590919,0.00016393,2]
[402991813,1769026250570,-23537.26366393,0.00022432,2]
[402991814,1769026250579,-702.6873991,0.00022466,2]
[402991815,1769026250588,-187.82,0.00022499,2]
[402991816,1769026250598,-2900.0,0.000225,15]
[402991817,1769026250607,-182.56380882,0.00022556,2]
[402991818,1769026250616,-9817.39,0.0002274,2]
[402991819,1769026250625,-400.0,0.00023,2]
[402991820,1769026250634,-158.37327714,0.00023269,2]
[402991821,1769026250644,-678.43,0.00023337,2]
[402991822,1769026250655,-2078.99,0.00023355,2]
[402991823,1769026250664,-187.82,0.00023399,2]
[402991824,1769026250674,-11720.537548,0.00023441,2]
[402991825,1769026250684,-4609.0,0.00023485,2]
[402991826,1769026250694,-463.10612482,0.00023757,2]
[402991827,1769026250704,-1000.0,0.00024055,2]
[402991828,1769026250715,-254.07,0.00024225,30]
[402991829,1769026250724,-187.82,0.00024299,2]
[402991830,1769026250734,-502.0,0.00024384,2]
[402991831,1769026250743,-500.0,0.00024411,2]
[402991832,1769026250753,-164.43788877,0.0002455,15]
[402991833,1769026250763,-151.0,0.00024655,2]
[402991834,1769026250772,-997.0,0.00024658,7]
[402991835,1769026250781,-1000.0,0.00024658,2]
[402991836,1769026250789,-183.51,0.00024658,2]
[402991837,1769026250799,-150.0,0.00024658,2]
[402991838,1769026250808,-158.37327714,0.00024723,2]
[402991839,1769026250817,-6709.73165837,0.000248,3]
[402991840,1769026250826,-809.17732307,0.000249,9]
[402991841,1769026250871,-180.81,0.00019385,2]
[402991842,1769026250880,-290.82267693,0.000249,9]
[402991843,1769026250889,-354.3784427,0.000249,9]
[402991844,1769026252222,-180.80158626,0.00019592,2]
[402991845,1769026252232,-445.6215573,0.000249,9]
[402991846,1769026252242,-1100.0,0.000249,9]
[402991847,1769026252251,-322.6107,0.00024954,2]
[402991848,1769026252261,-194.72792766,0.00024954,2]
[402991849,1769026252270,-250.0,0.00024954,2]
[402991850,1769026252280,-174.61919141,0.00024954,2]
[402991851,1769026252290,-250.0,0.00024954,2]
[402991852,1769026252299,-250.0,0.00024954,2]
[402991853,1769026252309,-250.0,0.00024954,2]
[402991854,1769026252319,-250.0,0.00024954,2]
[402991855,1769026252329,-250.0,0.00024954,2]
[402991856,1769026252339,-250.0,0.00024954,2]
[402991857,1769026252349,-250.0,0.00024954,2]
[402991858,1769026252359,-250.0,0.00024954,2]
[402991859,1769026252369,-533.88981491,0.00024954,2]
[402991860,1769026252378,-250.0,0.00024954,2]
[402991861,1769026252387,-250.0,0.00024954,2]
[402991862,1769026252397,-250.0,0.00024954,2]
[402991863,1769026252406,-250.0,0.00024954,2]
[402991864,1769026252415,-250.0,0.00024954,2]
[402991865,1769026252424,-250.0,0.00024954,2]
[402991866,1769026252434,-250.0,0.00024954,2]
[402991867,1769026252443,-250.0,0.00024954,2]
[402991868,1769026252453,-250.0,0.00024954,2]
[402991869,1769026252465,-250.0,0.00024954,2]
[402991870,1769026252475,-250.0,0.00024954,2]
[402991871,1769026252487,-250.0,0.00024954,2]
[402991872,1769026252498,-250.0,0.00024954,2]
[402991873,1769026252508,-250.0,0.00024954,2]
[402991874,1769026252517,-250.0,0.00024954,2]
[402991875,1769026252527,-250.0,0.00024954,2]
[402991876,1769026252537,-578.20924308,0.00024954,2]
[402991877,1769026252546,-250.0,0.00024954,2]
[402991878,1769026252556,-500.0,0.00024954,2]
[402991879,1769026252566,-500.0,0.00024954,2]
[402991880,1769026252576,-500.0,0.00024954,2]
[402991881,1769026252586,-500.0,0.00024954,2]
[402991882,1769026252596,-500.0,0.00024954,2]
[402991883,1769026252606,-500.0,0.00024954,2]
[402991884,1769026252616,-250.0,0.00024954,2]
[402991885,1769026252626,-500.0,0.00024954,2]
[402991886,1769026252636,-250.0,0.00024954,2]
[402991887,1769026252646,-500.0,0.00024954,2]
[402991888,1769026252656,-250.0,0.00024954,2]
[402991889,1769026252666,-500.0,0.00024954,2]
[402991890,1769026252676,-250.0,0.00024954,2]
[402991891,1769026252686,-500.0,0.00024954,2]
[402991892,1769026252696,-250.0,0.00024954,2]
[402991893,1769026252706,-500.0,0.00024954,2]
[402991894,1769026252717,-250.0,0.00024954,2]
[402991895,1769026252726,-500.0,0.00024954,2]
[402991896,1769026252736,-250.0,0.00024954,2]
[402991897,1769026252745,-500.0,0.00024954,2]
[402991898,1769026252755,-376.37345362,0.00024954,2]
[402991899,1769026252764,-359.76179104,0.00024954,2]
[402991900,1769026252774,-151.0,0.00024954,2]
[402991901,1769026252784,-151.0,0.00024954,2]
[402991902,1769026252793,-151.0,0.00024954,2]
[402991903,1769026252802,-151.0,0.00024954,2]
[402991904,1769026252812,-151.0,0.00024954,2]
[402991905,1769026252821,-151.0,0.00024954,2]
[402991906,1769026252831,-151.0,0.00024954,2]
[402991907,1769026252841,-151.0,0.00024954,2]
[402991908,1769026252851,-151.0,0.00024954,2]
[402991909,1769026252860,-151.0,0.00024954,2]
[402991910,1769026252870,-151.0,0.00024954,2]
[402991911,1769026252880,-151.0,0.00024954,2]
[402991912,1769026252890,-151.0,0.00024954,2]
[402991913,1769026252900,-151.0,0.00024954,2]
[402991914,1769026252909,-450.0,0.00025,2]
[402991915,1769026252919,-13617.41,0.00025001,2]
[402991916,1769026252929,-531.0,0.00025091,7]
[402991917,1769026252939,-308.00924308,0.00025207,2]
[402991918,1769026252948,-678.43,0.00025459,120]
[402991919,1769026252962,-233.46284859,0.00025502,2]
[402991920,1769026252972,-181.08010149,0.00025502,2]
[402991921,1769026252981,-553.64373807,0.00025502,2]
[402991922,1769026252990,-373.07297731,0.00025502,2]
[402991923,1769026252999,-1488.746,0.00025548,2]
[402991924,1769026253009,-1332.0,0.00025548,2]
[402991925,1769026253018,-615.0,0.00025548,2]
[402991926,1769026253027,-383.159,0.00025548,2]
[402991927,1769026253036,-1268.0,0.00025548,2]
[402991928,1769026253046,-915.0,0.00025548,2]
[402991929,1769026253055,-1203.0,0.00025548,2]
[402991930,1769026253065,-2440.0,0.00025548,2]
[402991931,1769026253081,-6564.0,0.00025548,2]
[402991932,1769026253091,-4826.0,0.00025548,2]
[402991933,1769026253100,-12541.0,0.00025724,2]
[402991934,1769026253110,-1454.0,0.00025803,2]
[402991935,1769026253122,-187.78006525,0.0002605,2]
[402991936,1769026253131,-574.12855637,0.0002605,2]
[402991937,1769026253141,-373.07297731,0.0002605,2]
[402991938,1769026253150,-1191.98,0.000261,7]
[402991939,1769026253160,-158.37327714,0.00026178,2]
[402991940,1769026253170,-334.5472959,0.00026323,2]
[402991941,1769026253179,-2190.9319388,0.00026346,2]
[402991942,1769026253189,-194.72792766,0.00026598,2]
[402991943,1769026253199,-595.37131296,0.00026598,2]
[402991944,1769026253209,-266.0,0.00026932,2]
[402991945,1769026253220,-150.0,0.00026932,2]
[402991946,1769026253230,-250.0,0.00026932,2]
[402991947,1769026253240,-194.916,0.00026932,2]
[402991948,1769026253250,-227.246,0.00026932,2]
[402991949,1769026253260,-150.0,0.00026932,2]
[402991950,1769026253271,-157.766,0.00026932,2]
[402991951,1769026253281,-500.0,0.00027,2]
[402991952,1769026253290,-201.93286099,0.00027146,2]
[402991953,1769026253299,-617.40005154,0.00027146,2]
[402991954,1769026253308,-1008.3455,0.00027299,2]
[402991955,1769026253317,-150.0,0.00027369,2]
[402991956,1769026253326,-277.62916867,0.0002737,2]
[402991957,1769026253335,-151.0,0.00027394,2]
[402991958,1769026253345,-300.0,0.00027397,2]
[402991959,1769026253355,-500.0,0.00027397,20]
[402991960,1769026253365,-463.10612482,0.00027616,2]
[402991961,1769026253374,-158.37327714,0.00027632,2]
[402991962,1769026253384,-346.92554585,0.00027692,2]
[402991963,1769026253393,-599.60298507,0.00027693,2]
[402991964,1769026253402,-209.40437684,0.00027694,2]
[402991965,1769026253411,-640.24385345,0.00027694,2]
[402991966,1769026253421,-2000.0,0.000279,2]
[402991967,1769026253430,-217.15233878,0.00028242,2]
[402991968,1769026253439,-663.93287602,0.00028242,2]
[402991969,1769026253449,-166.33,0.00028493,2]
[402991970,1769026253459,-1407.0,0.00028548,2]
[402991971,1769026253470,-1332.0,0.00028548,2]
[402991972,1769026253479,-615.0,0.00028548,2]
[402991973,1769026253489,-1268.0,0.00028548,2]
[402991974,1769026253498,-915.0,0.00028548,2]
[402991975,1769026253508,-1203.0,0.00028548,2]
[402991976,1769026253519,-2440.0,0.00028548,2]
[402991977,1769026253529,-6564.0,0.00028548,2]
[402991978,1769026253539,-225.18697532,0.0002879,2]
[402991979,1769026253549,-688.49839244,0.0002879,2]
[402991980,1769026253559,-359.76179104,0.00029061,2]
[402991981,1769026253569,-158.37327714,0.00029086,2]
[402991982,1769026253579,-254.07,0.00029272,30]
[402991983,1769026253588,-233.51889341,0.00029338,2]
[402991984,1769026253598,-713.97283296,0.00029338,2]
[402991985,1769026253608,-483.12,0.000294,14]
[402991986,1769026253618,-500.0,0.00029562,2]
[402991987,1769026253628,-1191.98,0.000296,7]
[402991988,1769026253637,-308.00924308,0.00029719,2]
[402991989,1769026253647,-1000.0,0.00029735,2]
[402991990,1769026253658,-242.15909246,0.00029886,2]
[402991991,1769026253668,-740.38982778,0.00029886,2]
[402991992,1769026253678,-150.0,0.00029932,2]
[402991993,1769026253688,-150.0,0.00029932,2]
[402991994,1769026253699,-500.0,0.0002997,2]
[402991995,1769026253708,-1000.0,0.0002997,2]
[402991996,1769026253720,-108646.38617958,0.0003,5]
[402991997,1769026253730,-16471.57543627,0.0003,7]
[402991998,1769026253740,-863.77742898,0.0003,7]
[402991999,1769026253750,-194.31477362,0.00030058,2]
[402992000,1769026253760,-151.0,0.00030133,2]
[402992001,1769026253770,-183.51,0.00030137,2]
[402992002,1769026253779,-199.44,0.000304,30]
[402992003,1769026253788,-373.07297731,0.0003043,2]
[402992004,1769026253798,-621.78829552,0.00030432,2]
[402992005,1769026253977,-251.11897888,0.00030434,2]
[402992006,1769026253987,-767.7842514,0.00030434,2]
[402992007,1769026253997,-158.37327718,0.00030541,2]
[402992008,1769026254007,-195.58150189,0.00030578,6]
[402992009,1769026254016,-3744.15574824,0.00030578,2]
[402992010,1769026254025,-544.58362299,0.00030578,2]
[402992011,1769026254034,-531.0,0.00030582,12]
[402992012,1769026254044,-260.4103811,0.00030982,2]
[402992013,1769026254054,-796.19226871,0.00030982,2]
[402992014,1769026254064,-463.10612482,0.00031475,2]
[402992015,1769026254076,-270.0455652,0.0003153,2]
[402992016,1769026254087,-825.65138265,0.0003153,2]
[402992017,1769026254097,-1407.0,0.00031548,2]
[402992018,1769026254106,-1332.0,0.00031548,2]
[402992019,1769026254116,-1268.0,0.00031548,2]
[402992020,1769026254126,-915.0,0.00031548,2]
[402992021,1769026254135,-840.069,0.00031548,2]
[402992022,1769026254144,-2440.0,0.00031548,2]
[402992023,1769026254154,-6564.0,0.00031548,2]
[402992024,1769026254165,-2000.0,0.000316,2]
[402992025,1769026254175,-2000.0,0.000316,2]
[402992026,1769026254184,-386.87667747,0.00031799,2]
[402992027,1769026254194,-280.03725112,0.00032078,2]
[402992028,1769026254204,-500.0,0.00032438,2]
[402992029,1769026254213,-155.07117807,0.00032626,2]
[402992030,1769026254225,-151.0,0.00032872,2]
[402992031,1769026254235,-502.98231063,0.00032876,30]
[402992032,1769026254244,-445.57,0.000329,2]
[402992033,1769026254254,-2000.0,0.000329,7]
[402992034,1769026254264,-406.0,0.00033,14]
[402992035,1769026254274,-168.0,0.00033,14]
[402992036,1769026254284,-168.0,0.00033151,30]
[402992037,1769026254294,-406.0,0.00033151,30]
[402992038,1769026254303,-459.58068566,0.00033168,2]
[402992039,1769026254312,-644.79446246,0.00033171,2]
[402992040,1769026254321,-406.0,0.00033425,30]
[402992041,1769026254330,-406.0,0.00033699,30]
[402992042,1769026254340,-406.0,0.00033973,30]
[402992043,1769026254349,-185.55,0.000342,14]
[402992044,1769026254358,-156.71,0.000342,14]
[402992045,1769026254368,-2000.0,0.000342,7]
[402992046,1769026254379,-308.00924308,0.00034231,2]
[402992047,1769026254389,-254.07,0.00034319,30]
[402992048,1769026254398,-1191.98,0.000344,14]
[402992049,1769026254407,-168.0,0.00034521,30]
[402992050,1769026254417,-406.0,0.00034521,30]
[402992051,1769026254426,-1407.0,0.00034548,2]
[402992052,1769026254435,-758.668,0.00034548,2]
[402992053,1769026254444,-1268.0,0.00034548,2]
[402992054,1769026254453,-873.136,0.00034548,2]
[402992055,1769026254463,-406.016,0.00034548,2]
[402992056,1769026254474,-6564.0,0.00034548,2]
[402992057,1769026254485,-445.57,0.000348,2]
[402992058,1769026254494,-2000.0,0.000353,2]
[402992059,1769026254504,-463.10612482,0.00035334,2]
[402992060,1769026254513,-2000.0,0.000355,7]
[402992061,1769026254522,-416.443753,0.00035589,30]
[402992062,1769026254532,-151.0,0.00035611,2]
[402992063,1769026254542,-371.12351035,0.00035616,120]
[402992064,1769026254551,-500.0,0.00035616,5]
[402992065,1769026254560,-183.51,0.00035616,2]
[402992066,1769026254569,-9394.81372636,0.00035696,2]
[402992067,1769026254579,-5000.0,0.00035696,2]
[402992068,1769026254588,-5000.0,0.00035696,2]
[402992069,1769026254598,-340.0,0.00035799,30]
[402992070,1769026254607,-482.77507947,0.0003591,2]
[402992071,1769026254617,-502.25,0.00036,30]
[402992072,1769026254627,-2457.39985539,0.00036,2]
[402992073,1769026254641,-495.26323143,0.00036,2]
[402992074,1769026254653,-34569.494305,0.00036,2]
[402992075,1769026254663,-965.4167917,0.00036,2]
[402992076,1769026254731,-6782.17121942,0.00036,2]
[402992077,1769026254743,-665.94287206,0.00036,2]
[402992078,1769026255017,-4868.55573408,0.00016866,2]
[402992079,1769026255027,-20571.93235025,0.00036,2]
[402992080,1769026255038,-393.25534462,0.00036,2]
[402992081,1769026255260,-5660.19469761,0.00036,2]
[402992082,1769026255281,-2904.87667842,0.00036,2]
[402992083,1769026257389,-151.0,0.00016496,2]
[402992084,1769026257399,-674.99408994,0.000179,2]
[402992085,1769026257410,-736.89738193,0.000179,2]
[402992086,1769026257419,-566.0,0.00025548,2]
[402992087,1769026257429,-566.0,0.00028548,2]
[402992088,1769026257439,-28080.85544042,0.00036,2]
[402992089,1769026257448,-441.00610445,0.00036,2]
[402992090,1769026257459,-1662.01696508,0.00036,2]
[402992091,1769026257471,-330.15551753,0.00036,2]
[402992092,1769026257557,-519.33582053,0.000179,2]
[402992093,1769026288700,150.0,0.00016064,2]
[402992094,1769026290403,500.0,0.00016064,2]
[402992095,1769026290473,468.0,0.00016064,2]
[402992096,1769026291066,150.0,0.00016064,2]
[402992097,1769026291733,957.0,0.00016064,2]
[402992098,1769026295352,150.0,0.00016064,2]
[402992099,1769026296639,200.0,0.00016064,2]
[402992100,1769026297475,199.55762914,0.00016064,2]
[402992101,1769026298820,150.0,0.00016064,2]
[402992102,1769026300341,150.0,0.00016064,2]
[402992103,1769026301288,150.0,0.00016064,2]
[402992104,1769026303503,150.0,0.00016064,2]
[402992105,1769026304514,150.0,0.00016064,2]
[402992106,1769026305042,150.0,0.00016064,2]
[402992107,1769026305469,150.0,0.00016064,2]
[402992108,1769026307236,150.0,0.00016064,2]
[402992109,1769026328305,374.546,0.00016018,2]
[402992110,1769026361676,5650.90637086,0.00016038,2]
[402992111,1769026361700,10000.01,0.00016038,2]
[402992112,1769026361725,10000.01,0.00016038,2]
[402992113,1769026361750,10000.01,0.00016038,2]
[402992114,1769026361775,10000.01,0.00016038,2]
[402992115,1769026361799,10000.01,0.00016038,2]
[402992116,1769026361823,10000.01,0.00016038,2]
[402992117,1769026361846,10000.01,0.00016038,2]
[402992118,1769026361870,10000.01,0.00016038,2]
[402992119,1769026361894,10000.01,0.00016038,2]
[402992120,1769026362650,-594.55930104,0.00016038,2]
[402992121,1769026366583,-269.5220157,0.00016038,2]
[402992122,1769026369398,-264.87733376,0.00016038,2]
[402992123,1769026372454,-10000.01,0.00016038,2]
[402992124,1769026372547,-10000.01,0.00016038,2]
[402992125,1769026372644,-10000.01,0.00016038,2]
[402992126,1769026372674,-167.25108689,0.00016038,2]
[402992127,1769026372742,-10000.01,0.00016038,2]
[402992128,1769026372816,-10000.01,0.00016038,2]
[402992129,1769026372862,-10000.01,0.00016038,2]
[402992130,1769026372918,-10000.01,0.00016038,2]
[402992131,1769026372992,-10000.01,0.00016038,2]
[402992132,1769026373140,-10000.01,0.00016038,2]
[402992133,1769026373234,-10000.01,0.00016038,2]
[402992134,1769026374193,-246.29664146,0.00016038,2]
[402992135,1769026376922,-194.78001737,0.00016038,2]
[402992136,1769026378577,-10000.01,0.00016038,2]
[402992137,1769026378659,-10000.01,0.00016038,2]
[402992138,1769026378809,-10000.01,0.00016038,2]
[402992139,1769026378943,-10000.01,0.00016038,2]
[402992140,1769026379192,-10000.01,0.00016038,2]
[402992141,1769026380859,-319.213865,0.00016038,2]